bitfinex/quotes_SOLUSD_20251124
["timestamp","ask_amount","ask_price","bid_price","bid_amount"]
[1763947123735,0.2,131.04,130.96,37.21062486]
[1763947123736,18.77096,131.03,130.96,18.12096]
[1763947124027,18.77096,131.03,131.0,9.53985243]
[1763947124229,0.65,131.02,131.0,9.53985243]
[1763947125052,0.65,131.02,130.99,9.53985243]
[1763947125555,18.12096,131.01,130.99,9.53985243]
[1763947125760,18.12096,131.0,130.9,28.63824882]
[1763947126057,18.82096,131.0,130.97,9.53985243]
[1763947126249,0.7,130.99,130.97,9.53985243]
[1763947126658,0.7,130.99,130.96,9.53985243]
[1763947126851,10.23985243,130.99,130.94,9.53985243]
[1763947127047,9.53985243,130.98,130.88,7.64047387]
[1763947127229,10.23985243,130.98,130.93,9.53985243]
[1763947127434,0.7,130.97,130.95,9.53985243]
[1763947128338,0.7,130.97,130.94,9.53985243]
[1763947128859,0.7,130.97,130.95,9.53985243]
[1763947129065,0.7,130.97,130.96,9.53985243]
[1763947129256,0.7,130.99,130.96,9.53985243]
[1763947129451,0.7,130.99,130.97,9.53985243]
[1763947129833,0.7,130.99,130.92,18.12096]
[1763947129834,18.12096,131.0,130.98,9.53985243]
[1763947130059,18.82096,131.0,130.98,9.53985243]
[1763947130359,0.7,130.99,130.98,9.53985243]
[1763947132170,0.7,131.02,130.98,9.53985243]
[1763947132339,0.7,131.02,131.0,9.53985243]
[1763947132537,0.2,131.04,130.96,25.75641442]
[1763947132538,0.2,131.04,131.01,9.53985243]
[1763947132839,0.2,131.04,130.96,25.75641442]
[1763947132840,0.2,131.04,131.03,9.53985243]
[1763947135842,0.2,131.04,131.03,17.17169246]
[1763947136444,0.2,131.04,131.03,20.61169246]
[1763947136666,0.2,131.12,131.06,18.12096]
[1763947136865,0.9,131.12,131.09,9.53985243]
[1763947137164,0.9,131.12,131.04,21.56096]
[1763947137362,0.7,131.11,131.09,9.53985243]
[1763947137750,0.7,131.11,131.1,9.53985243]
[1763947138056,0.2,131.12,131.1,9.53985243]
[1763947138253,0.2,131.12,131.11,12.97985243]
[1763947138563,0.2,131.12,131.1,9.53985243]
[1763947138779,0.2,131.12,131.11,9.53985243]
[1763947140778,0.2,131.12,131.09,3.46]
[1763947140779,0.9,131.12,131.1,9.53985243]
[1763947142147,0.2,131.12,131.11,9.53985243]
[1763947142567,0.2,131.12,131.11,12.97985243]
[1763947142764,0.2,131.16,131.14,18.12096]
[1763947142947,0.2,131.16,131.15,9.53985243]
[1763947143148,0.2,131.16,131.15,12.99985243]
[1763947143551,0.7,131.23,131.18,18.12096]
[1763947143765,0.7,131.23,131.2,9.53985243]
[1763947143971,0.7,131.23,131.19,9.53985243]
[1763947144272,0.7,131.23,131.2,9.53985243]
[1763947144474,0.7,131.25,131.22,9.53985243]
[1763947144958,0.7,131.25,131.19,18.12096]
[1763947145272,9.53985243,131.26,131.23,9.53985243]
[1763947145273,0.7,131.26,131.23,9.53985243]
[1763947145459,0.7,131.25,131.21,9.53985243]
[1763947146366,10.23985243,131.25,131.2,9.53985243]
[1763947146578,0.7,131.25,131.23,9.53985243]
[1763947147291,0.7,131.25,131.22,9.53985243]
[1763947147496,4.68579556,131.29,131.24,9.53985243]
[1763947147780,3.46,131.3,131.22,21.56096]
[1763947147781,0.7,131.31,131.28,9.53985243]
[1763947148484,0.7,131.33,131.3,9.53985243]
[1763947148861,0.7,131.31,131.26,9.53985243]
[1763947149162,10.23985243,131.31,131.26,9.53985243]
[1763947149376,0.7,131.31,131.26,9.53985243]
[1763947149674,0.7,131.3,131.27,9.53985243]
[1763947150570,0.7,131.3,131.26,9.53985243]
[1763947150772,0.7,131.3,131.27,9.53985243]
[1763947151178,0.9,131.32,131.29,9.53985243]
[1763947151382,0.9,131.32,131.28,9.53985243]
[1763947151383,0.7,131.3,131.28,9.53985243]
[1763947151564,0.7,131.31,131.28,9.53985243]
[1763947151768,10.23985243,131.31,131.18,21.05725465]
[1763947152085,10.23985243,131.31,131.26,9.53985243]
[1763947152381,0.7,131.3,131.26,9.53985243]
[1763947152771,9.53985243,131.29,131.24,9.53985243]
[1763947153171,0.7,131.28,131.24,9.53985243]
[1763947153572,0.7,131.28,131.25,9.53985243]
[1763947153755,0.7,131.28,131.22,9.53985243]
[1763947153756,9.53985243,131.27,131.22,9.53985243]
[1763947154157,9.53985243,131.25,131.2,9.53985243]
[1763947154361,9.53985243,131.25,131.19,9.53985243]
[1763947154579,10.23985243,131.24,131.19,9.53985243]
[1763947154960,18.12096,131.27,131.12,9.53985243]
[1763947154961,10.23985243,131.23,131.12,9.53985243]
[1763947155159,0.7,131.23,131.18,9.53985243]
[1763947155360,0.7,131.23,131.13,3.44]
[1763947155361,10.23985243,131.22,131.09,1.99999999]
[1763947155565,9.53985243,131.2,131.14,9.53985243]
[1763947155765,0.65,131.21,131.14,9.53985243]
[1763947155991,18.12096,131.23,131.18,9.53985243]
[1763947156166,0.65,131.22,131.18,9.53985243]
[1763947156362,10.18985243,131.22,131.17,9.53985243]
[1763947156590,9.53985243,131.21,131.16,9.53985243]
[1763947156778,0.65,131.21,131.17,9.53985243]
[1763947156974,0.65,131.21,131.18,9.53985243]
[1763947157998,0.65,131.24,131.2,9.53985243]
[1763947158200,0.65,131.23,131.2,9.53985243]
[1763947158693,0.65,131.23,131.21,9.53985243]
[1763947159676,0.65,131.23,131.17,18.12096]
[1763947159897,0.65,131.23,131.2,9.53985243]
[1763947160090,0.65,131.23,131.19,9.53985243]
[1763947160294,10.18985243,131.23,131.17,9.53985243]
[1763947160799,0.65,131.22,131.18,9.53985243]
[1763947161096,0.65,131.22,131.19,9.53985243]
[1763947162601,3.44,131.25,131.2,9.53985243]
[1763947162799,0.65,131.24,131.21,9.53985243]
[1763947163184,0.65,131.24,131.22,9.53985243]
[1763947164081,0.65,131.24,131.21,9.53985243]
[1763947165291,0.65,131.26,131.22,9.53985243]
[1763947165607,0.65,131.26,131.19,18.12096]
[1763947165608,0.65,131.26,131.23,9.53985243]
[1763947166100,0.65,131.28,131.25,9.53985243]
[1763947167999,0.65,131.28,131.22,3.44]
[1763947168204,0.65,131.28,131.24,9.53985243]
[1763947169177,18.12096,131.27,131.22,12.97985243]
[1763947169383,27.66081243,131.27,131.22,12.97985243]
[1763947169580,0.65,131.26,131.22,12.97985243]
[1763947169976,0.65,131.26,131.14,2.76254383]
[1763947169977,9.53985243,131.23,131.08,1.99999999]
[1763947170184,9.53985243,131.18,131.12,9.53985243]
[1763947170405,3.44,131.22,131.01,11.53985242]
[1763947170406,9.53985243,131.15,131.01,11.53985242]
[1763947170707,18.12096,131.17,131.02,0.1]
[1763947170708,9.53985243,131.12,131.02,0.1]
[1763947170880,0.65,131.11,131.03,3.44]
[1763947171084,0.65,131.14,131.1,9.53985243]
[1763947171397,0.65,131.14,131.12,9.53985243]
[1763947173095,4.09,131.16,131.12,9.53985243]
[1763947173304,0.65,131.15,131.12,9.53985243]
[1763947173499,10.18985243,131.15,131.1,9.53985243]
[1763947173905,0.65,131.14,131.1,9.53985243]
[1763947174215,9.53985243,131.13,131.07,9.53985243]
[1763947174508,18.77096,131.14,131.06,9.53985243]
[1763947174696,9.53985243,131.11,131.06,9.53985243]
[1763947174891,9.53985243,131.11,131.05,9.53985243]
[1763947175205,10.18985243,131.1,131.05,9.53985243]
[1763947175584,10.18985243,131.1,131.03,9.53985243]
[1763947175585,9.53985243,131.08,131.03,9.53985243]
[1763947175802,10.18985243,131.09,131.03,9.53985243]
[1763947176006,0.65,131.08,131.03,9.53985243]
[1763947176399,0.65,131.08,131.02,0.1]
[1763947176400,10.18985243,131.08,131.02,0.1]
[1763947176596,10.18985243,131.08,131.03,9.53985243]
[1763947177107,0.65,131.07,131.03,9.53985243]
[1763947177907,0.65,131.07,131.02,0.1]
[1763947178109,9.53985243,131.06,131.02,0.1]
[1763947178296,10.18985243,131.05,131.02,0.1]
[1763947178807,0.65,131.04,131.02,0.1]
[1763947180085,10.18985243,131.04,131.02,0.1]
[1763947180515,0.65,131.03,131.02,0.1]
[1763947180905,28.31081243,131.03,130.9,9.53985243]
[1763947181108,9.53985243,131.0,130.94,9.53985243]
[1763947181303,0.65,130.99,130.94,9.53985243]
[1763947181706,10.18985243,130.99,130.94,9.53985243]
[1763947181926,9.53985243,130.98,130.93,9.53985243]
[1763947182223,9.53985243,130.98,130.91,9.53985243]
[1763947182224,9.53985243,130.96,130.91,9.53985243]
[1763947182712,5.61309998,130.94,130.89,5.61309998]
[1763947183103,0.65,130.93,130.88,5.61309998]
[1763947183498,6.26309998,130.93,130.88,5.61309998]
[1763947183705,0.65,130.93,130.9,5.61309998]
[1763947183905,0.7,130.93,130.9,5.61309998]
[1763947184111,0.7,130.92,130.89,5.61309998]
[1763947184509,0.7,130.92,130.9,5.61309998]
[1763947184692,0.7,130.92,130.89,5.61309998]
[1763947185389,23.73405998,130.95,130.86,18.12096]
[1763947185390,0.7,130.94,130.91,5.61309998]
[1763947185699,0.7,130.94,130.86,31.48562047]
[1763947185915,0.7,130.98,130.89,18.12096]
[1763947186102,0.7,130.97,130.89,21.56096]
[1763947186406,0.7,130.97,130.93,5.61309998]
[1763947186616,0.7,130.97,130.94,5.61309998]
[1763947187223,0.7,130.97,130.95,5.61309998]
[1763947188691,0.7,130.97,130.94,5.61309998]
[1763947193020,0.7,130.97,130.95,5.61309998]
[1763947193406,0.7,130.99,130.96,5.61309998]
[1763947193607,0.7,130.99,130.97,5.61309998]
[1763947194208,0.7,130.99,130.93,18.12096]
[1763947194415,5.61309998,130.98,130.93,23.73405998]
[1763947194926,0.7,130.97,130.94,5.61309998]
[1763947195706,0.7,130.97,130.95,5.61309998]
[1763947195905,0.7,130.97,130.93,18.12096]
[1763947195906,0.7,130.97,130.94,5.61309998]
[1763947196312,5.61309998,130.99,130.93,18.12096]
[1763947196313,0.7,130.99,130.96,5.61309998]
[1763947196510,0.7,131.01,130.94,0.11]
[1763947196819,24.43405998,131.03,130.98,5.61309998]
[1763947197016,0.7,131.02,130.98,5.61309998]
[1763947197217,0.7,131.02,130.99,5.61309998]
[1763947198009,0.7,131.02,131.0,5.61309998]
[1763947198532,4.14,131.04,131.0,5.61309998]
[1763947198727,0.7,131.03,131.0,5.61309998]
[1763947199432,0.7,131.07,131.02,5.61309998]
[1763947199608,5.61309998,131.07,131.02,5.61309998]
[1763947199810,6.31309998,131.06,130.97,18.23096]
[1763947200131,6.31309998,131.06,131.0,5.61309998]
[1763947200428,6.31309998,131.06,131.01,5.61309998]
[1763947200429,0.7,131.05,131.01,5.61309998]
[1763947200617,0.7,131.05,131.02,5.61309998]
[1763947201225,0.7,131.05,131.0,5.61309998]
[1763947201226,6.31309998,131.05,131.0,5.61309998]
[1763947201427,18.12096,131.06,131.02,5.61309998]
[1763947201626,18.12096,131.06,131.03,5.61309998]
[1763947201832,0.7,131.05,131.01,5.61309998]
[1763947202017,0.7,131.05,131.0,5.61309998]
[1763947202220,0.7,131.05,130.98,5.61309998]
[1763947202221,5.61309998,131.04,130.98,5.61309998]
[1763947202447,0.7,131.03,130.98,5.61309998]
[1763947203936,6.31309998,131.03,130.98,5.61309998]
[1763947204315,6.31309998,131.03,130.95,18.23096]
[1763947204316,5.61309998,131.01,130.95,0.11]
[1763947204515,5.61309998,131.01,130.96,5.61309998]
[1763947204715,0.7,131.01,130.97,5.61309998]
[1763947205509,29.98762993,131.13,131.0,5.61309998]
[1763947205713,29.98762993,131.13,131.04,5.61309998]
[1763947205714,0.7,131.07,131.04,5.61309998]
[1763947206137,0.7,131.07,131.05,5.61309998]
[1763947208040,6.31309998,131.07,131.02,5.61309998]
[1763947208416,6.31309998,131.06,131.0,18.12096]
[1763947208735,5.61309998,131.05,131.0,23.73405998]
[1763947208929,6.31309998,131.05,131.0,23.73405998]
[1763947209130,0.7,131.04,131.0,5.61309998]
[1763947210039,6.31309998,131.04,130.99,5.61309998]
[1763947210217,0.7,131.03,130.99,5.61309998]
[1763947210424,0.7,131.03,131.0,5.61309998]
[1763947210923,0.7,131.03,130.97,18.12096]
[1763947211125,6.31309998,131.05,131.0,5.61309998]
[1763947211524,0.7,131.04,131.0,5.61309998]
[1763947212849,0.7,131.04,130.98,0.11]
[1763947213255,23.73405998,131.03,130.95,0.11]
[1763947213455,5.61309998,131.02,130.97,5.61309998]
[1763947213754,0.7,131.02,130.98,5.61309998]
[1763947213922,0.7,131.01,130.98,5.61309998]
[1763947214348,18.12096,131.03,131.0,5.61309998]
[1763947214560,0.7,131.05,131.01,5.61309998]
[1763947215025,0.7,131.05,130.95,13.2490468]
[1763947215026,5.61309998,131.04,130.96,0.11]
[1763947215226,5.61309998,131.04,130.99,5.61309998]
[1763947215541,24.43405998,131.03,130.98,5.61309998]
[1763947215917,0.69,131.02,130.99,5.61309998]
[1763947216235,3.44,131.06,131.01,5.61309998]
[1763947216236,0.69,131.05,131.01,5.61309998]
[1763947216442,0.69,131.05,131.02,5.61309998]
[1763947216955,0.69,131.05,131.04,5.61309998]
[1763947217124,9.05309998,131.1,131.04,5.61309998]
[1763947217322,18.12096,131.07,131.04,5.61309998]
[1763947217832,0.69,131.06,131.03,5.61309998]
[1763947218045,0.69,131.06,130.98,3.44]
[1763947218046,0.69,131.06,131.02,5.61309998]
[1763947218534,0.69,131.06,131.03,5.61309998]
[1763947218858,6.30309998,131.06,130.98,18.12096]
[1763947219057,6.30309998,131.06,131.01,5.61309998]
[1763947219256,6.30309998,131.06,130.96,3.44]
[1763947219257,5.61309998,131.04,130.99,5.61309998]
[1763947219631,0.69,131.03,130.99,5.61309998]
[1763947220049,0.69,131.03,131.0,5.61309998]
[1763947220255,0.69,131.03,130.99,5.61309998]
[1763947220837,0.69,131.03,131.0,5.61309998]
[1763947221561,0.69,131.03,131.01,5.61309998]
[1763947221744,6.30309998,131.08,131.02,5.61309998]
[1763947221944,6.30309998,131.08,131.03,5.61309998]
[1763947222173,0.69,131.07,131.03,5.61309998]
[1763947222464,5.61309998,131.06,131.0,5.61309998]
[1763947222663,0.69,131.05,131.0,5.61309998]
[1763947223038,6.30309998,131.05,131.0,5.61309998]
[1763947223240,6.30309998,131.05,130.95,9.05309998]
[1763947223241,6.30309998,131.05,130.95,31.48047271]
[1763947223465,24.42405998,131.04,130.99,5.61309998]
[1763947223760,24.42405998,131.04,130.98,5.61309998]
[1763947223965,0.69,131.03,130.98,5.61309998]
[1763947224134,6.30309998,131.03,130.98,5.61309998]
[1763947224537,6.30309998,131.02,130.97,5.61309998]
[1763947224843,0.69,131.01,130.98,5.61309998]
[1763947225038,0.69,131.01,130.96,5.61309998]
[1763947225541,0.69,131.01,130.97,5.61309998]
[1763947225742,0.69,131.01,130.98,5.61309998]
[1763947227563,6.30309998,131.01,130.93,18.12096]
[1763947227754,18.12096,131.0,130.96,5.61309998]
[1763947228065,18.81096,131.0,130.97,5.61309998]
[1763947228260,0.69,130.99,130.97,5.61309998]
[1763947228558,0.69,130.99,130.98,5.61309998]
[1763947229072,0.69,131.01,130.98,5.61309998]
[1763947229371,3.44,131.04,131.0,5.61309998]
[1763947229372,0.69,131.03,131.0,5.61309998]
[1763947230060,0.69,131.03,130.95,13.35958415]
[1763947230061,0.69,131.03,131.01,5.61309998]
[1763947230274,0.69,131.05,131.02,5.61309998]
[1763947230468,0.69,131.05,130.98,0.11]
[1763947230469,0.69,131.05,131.04,5.61309998]
[1763947230988,9.03309998,131.09,131.04,5.61309998]
[1763947230989,0.69,131.07,131.04,5.61309998]
[1763947231158,0.69,131.07,131.05,5.61309998]
[1763947231659,18.81096,131.07,131.05,5.61309998]
[1763947232075,0.69,131.06,131.01,0.11]
[1763947232381,0.69,131.06,131.0,18.12096]
[1763947232549,0.69,131.06,131.04,5.61309998]
[1763947233249,18.81096,131.06,130.98,18.12096]
[1763947233559,0.69,131.05,131.01,5.61309998]
[1763947234250,24.42405998,131.05,131.0,5.61309998]
[1763947234448,3.42,131.04,131.0,5.61309998]
[1763947234649,4.11,131.04,131.01,5.61309998]
[1763947234866,0.69,131.03,131.01,5.61309998]
[1763947235169,0.69,131.03,130.95,23.84405998]
[1763947235352,0.69,131.03,131.01,5.61309998]
[1763947235674,4.11,131.04,131.01,5.61309998]
[1763947235971,3.42,131.04,131.03,5.61309998]
[1763947236180,0.69,131.04,131.02,5.61309998]
[1763947236348,0.69,131.03,131.01,5.61309998]
[1763947236551,0.69,131.03,131.02,5.61309998]
[1763947236746,18.12096,131.05,131.02,5.61309998]
[1763947236947,0.69,131.05,131.04,5.61309998]
[1763947237150,0.69,131.05,130.99,0.11]
[1763947237350,0.69,131.05,131.04,5.61309998]
[1763947237569,0.69,131.05,131.03,5.61309998]
[1763947238260,0.69,131.05,130.99,0.11]
[1763947238477,0.69,131.05,131.02,5.61309998]
[1763947238680,0.69,131.05,131.01,5.61309998]
[1763947243481,5.61309998,131.03,130.97,5.61309998]
[1763947243871,18.82096,131.02,130.97,5.61309998]
[1763947244076,24.43405998,131.02,130.97,5.61309998]
[1763947244275,24.43405998,131.02,130.93,0.11]
[1763947244276,0.7,131.01,130.93,0.11]
[1763947244477,3.42,131.0,130.96,5.61309998]
[1763947244681,3.42,131.0,130.96,9.54942937]
[1763947244888,0.7,130.99,130.96,9.54942937]
[1763947245366,0.7,131.02,130.98,9.54942937]
[1763947245559,0.68,131.02,130.99,9.54942937]
[1763947245974,0.68,131.02,131.0,9.54942937]
[1763947248083,0.68,131.02,130.99,9.54942937]
[1763947250787,18.80096,131.02,130.99,9.54942937]
[1763947250984,18.80096,131.02,130.95,0.11]
[1763947251167,0.68,131.01,130.93,18.12096]
[1763947251366,0.68,131.01,130.97,9.54942937]
[1763947251587,0.68,131.01,130.99,9.54942937]
[1763947251762,18.80096,131.01,130.99,9.54942937]
[1763947252783,22.22096,131.03,131.0,9.54942937]
[1763947253092,18.12096,131.02,131.0,9.54942937]
[1763947253286,18.80096,131.02,131.0,9.54942937]
[1763947253869,18.80096,131.02,130.97,0.11]
[1763947253870,0.68,131.02,131.01,9.54942937]
[1763947254474,0.68,131.02,131.0,9.54942937]
[1763947256995,18.80096,131.02,131.01,9.54942937]
[1763947257301,0.68,131.06,131.01,9.54942937]
[1763947257593,0.68,131.05,131.04,9.54942937]
[1763947257800,3.42,131.07,131.04,9.54942937]
[1763947257971,4.1,131.07,131.04,9.54942937]
[1763947258276,4.1,131.07,131.06,9.54942937]
[1763947258593,18.80096,131.06,131.04,9.54942937]
[1763947258969,0.68,131.05,131.04,9.54942937]
[1763947259390,0.68,131.05,131.03,9.54942937]
[1763947259592,18.80096,131.05,131.02,9.54942937]
[1763947259894,0.68,131.05,131.02,9.54942937]
[1763947260096,0.68,131.04,131.02,9.54942937]
[1763947260277,18.80096,131.04,131.01,9.54942937]
[1763947260482,18.80096,131.04,131.0,9.54942937]
[1763947260698,0.68,131.03,131.01,9.54942937]
[1763947260881,18.80096,131.03,131.0,9.54942937]
[1763947261279,3.42,131.04,131.01,9.54942937]
[1763947261598,0.68,131.02,131.01,9.54942937]
[1763947262595,0.68,131.02,130.98,9.54942937]
[1763947262802,18.80096,131.02,130.98,9.54942937]
[1763947263302,0.68,131.01,130.98,9.54942937]
[1763947263597,0.68,131.01,130.99,9.54942937]
[1763947263798,4.1,131.04,131.0,9.54942937]
[1763947263983,3.42,131.04,131.01,9.54942937]
[1763947264202,3.42,131.04,131.02,9.54942937]
[1763947264408,0.68,131.07,131.03,9.54942937]
[1763947264697,18.80096,131.06,131.03,9.54942937]
[1763947265070,18.80096,131.06,131.02,9.54942937]
[1763947265071,18.80096,131.05,131.02,9.54942937]
[1763947265272,18.80096,131.05,131.03,9.54942937]
[1763947265683,0.68,131.04,131.03,9.54942937]
[1763947265981,18.80096,131.04,131.01,9.54942937]
[1763947266498,21.54096,131.05,131.03,9.54942937]
[1763947266871,0.68,131.04,131.03,9.54942937]
[1763947267074,18.80096,131.04,131.02,9.54942937]
[1763947267274,0.68,131.03,131.01,9.54942937]
[1763947267501,0.68,131.03,131.0,9.54942937]
[1763947268303,18.12096,131.04,131.02,9.54942937]
[1763947268502,21.54096,131.05,131.03,9.54942937]
[1763947268813,22.22096,131.05,131.03,9.54942937]
[1763947269205,22.22096,131.05,131.04,9.54942937]
[1763947269399,18.80096,131.05,131.04,9.54942937]
[1763947269605,18.80096,131.05,131.03,9.54942937]
[1763947269811,0.68,131.04,131.03,9.54942937]
[1763947270732,3.42,131.07,131.03,9.54942937]
[1763947270733,0.68,131.07,131.03,9.54942937]
[1763947270929,18.12096,131.06,131.05,9.54942937]
[1763947271096,18.80096,131.06,131.01,0.11]
[1763947271301,0.68,131.05,130.99,0.11]
[1763947271518,0.68,131.05,131.03,9.54942937]
[1763947272623,18.12096,131.06,131.04,9.54942937]
[1763947273116,18.80096,131.06,131.05,9.54942937]
[1763947273300,18.80096,131.06,131.01,0.11]
[1763947273712,18.80096,131.06,131.03,9.54942937]
[1763947274736,18.80096,131.06,131.01,0.11]
[1763947274737,18.80096,131.06,131.04,9.54942937]
[1763947276830,18.12096,131.06,131.04,9.54942937]
[1763947277508,18.12096,131.06,131.05,9.54942937]
[1763947277705,0.69,131.07,131.05,9.54942937]
[1763947277909,18.81096,131.07,131.04,9.54942937]
[1763947278125,22.23096,131.07,131.03,9.54942937]
[1763947278309,0.69,131.06,131.03,9.54942937]
[1763947278508,18.81096,131.06,131.03,9.54942937]
[1763947279029,0.69,131.05,131.03,9.54942937]
[1763947279339,3.42,131.04,130.97,0.11]
[1763947279546,0.69,131.03,131.02,9.54942937]
[1763947279828,3.42,131.04,131.02,9.54942937]
[1763947280010,4.11,131.04,131.02,9.54942937]
[1763947280529,0.69,131.05,131.03,9.54942937]
[1763947282931,0.69,131.05,131.04,9.54942937]
[1763947283238,0.69,131.05,131.03,9.54942937]
[1763947283440,0.69,131.05,131.0,0.11]
[1763947283441,0.69,131.05,131.04,9.54942937]
[1763947283614,0.69,131.08,131.04,9.54942937]
[1763947283933,0.69,131.08,131.06,9.54942937]
[1763947284131,22.23096,131.1,131.07,9.54942937]
[1763947284441,0.69,131.09,131.07,9.54942937]
[1763947285141,18.81096,131.09,131.07,9.54942937]
[1763947285637,0.69,131.08,131.06,9.54942937]
[1763947286427,4.11,131.1,131.07,9.54942937]
[1763947286616,0.69,131.09,131.07,9.54942937]
[1763947286938,18.81096,131.09,131.07,9.54942937]
[1763947287140,18.81096,131.09,131.06,9.54942937]
[1763947287516,18.81096,131.09,131.07,9.54942937]
[1763947288426,0.69,131.08,131.03,0.11]
[1763947288725,0.69,131.08,131.06,9.54942937]
[1763947288924,18.81096,131.09,131.07,9.54942937]
[1763947289338,0.69,131.09,131.07,9.54942937]
[1763947289539,103.5,131.11,131.08,9.54942937]
[1763947289837,104.19,131.11,131.09,9.54942937]
[1763947290038,104.19,131.11,131.1,9.54942937]
[1763947290237,3.42,131.12,131.1,9.54942937]
[1763947290444,0.69,131.11,131.07,9.54942937]
[1763947290740,22.54424661,131.11,131.06,3.73328661]
[1763947290932,0.69,131.1,131.06,3.73328661]
[1763947291130,3.42,131.09,131.06,3.73328661]
[1763947291636,0.69,131.08,131.06,3.73328661]
[1763947292442,0.69,131.08,131.05,3.73328661]
[1763947293529,0.69,131.08,131.03,3.73328661]
[1763947293921,4.42328661,131.08,131.03,3.73328661]
[1763947294129,0.69,131.08,131.05,3.73328661]
[1763947294432,4.11,131.09,131.05,3.73328661]
[1763947294629,0.69,131.08,131.06,3.73328661]
[1763947294831,3.42,131.09,131.07,3.73328661]
[1763947295049,122.31096,131.1,131.07,3.73328661]
[1763947295227,0.69,131.09,131.07,3.73328661]
[1763947295423,0.69,131.09,131.04,0.11]
[1763947295424,0.69,131.09,131.08,3.73328661]
[1763947295941,122.31096,131.1,131.08,3.73328661]
[1763947296447,0.69,131.09,131.08,3.73328661]
[1763947297521,0.69,131.11,131.08,3.73328661]
[1763947297725,0.69,131.11,131.09,3.73328661]
[1763947297940,4.11,131.13,131.1,3.73328661]
[1763947298156,4.11,131.13,131.04,7.15328661]
[1763947298157,0.69,131.12,131.09,3.73328661]
[1763947298364,18.81096,131.12,131.08,3.73328661]
[1763947298732,0.69,131.11,131.07,3.73328661]
[1763947301166,0.69,131.11,131.04,0.11]
[1763947301352,0.69,131.11,131.07,3.73328661]
[1763947303463,0.69,131.11,131.01,21.54096]
[1763947303671,3.42,131.1,131.06,3.73328661]
[1763947304047,0.69,131.09,131.06,3.73328661]
[1763947304465,0.69,131.09,131.07,3.73328661]
[1763947305947,0.69,131.09,131.01,0.11]
[1763947306150,0.69,131.09,131.04,3.73328661]
[1763947306566,0.69,131.09,131.04,2.3901277]
[1763947306959,0.69,131.09,131.05,2.3901277]
[1763947308457,18.12096,131.08,131.01,18.23096]
[1763947308679,18.12096,131.07,131.03,2.3901277]
[1763947308880,21.54096,131.07,131.03,2.3901277]
[1763947309187,19.51527614,131.07,131.03,2.3901277]
[1763947309556,19.51527614,131.07,131.04,2.3901277]
[1763947309757,19.51527614,131.07,131.05,2.3901277]
[1763947310571,121.62096,131.11,131.05,2.3901277]
[1763947310572,3.42,131.09,131.05,2.3901277]
[1763947310765,3.42,131.09,131.03,0.67]
[1763947310975,3.42,131.09,131.05,2.3901277]
[1763947311280,18.81096,131.08,131.05,2.3901277]
[1763947312055,18.12096,131.08,131.06,2.3901277]
[1763947312674,4.11,131.09,131.07,2.3901277]
[1763947312901,3.42,131.09,131.07,2.3901277]
[1763947313272,4.11,131.09,131.07,2.3901277]
[1763947313476,4.11,131.09,131.06,0.67]
[1763947313477,4.11,131.09,131.06,2.3901277]
[1763947313878,0.69,131.08,131.06,2.3901277]
[1763947314075,0.69,131.08,131.02,18.79096]
[1763947314278,0.69,131.08,131.05,2.3901277]
[1763947316773,3.42,131.09,131.06,2.3901277]
[1763947316970,124.0110877,131.11,131.06,2.3901277]
[1763947316971,0.69,131.1,131.07,2.3901277]
[1763947318271,106.92,131.11,131.08,2.3901277]
[1763947318471,3.42,131.11,131.09,2.3901277]
[1763947318674,0.69,131.12,131.09,2.3901277]
[1763947319075,0.69,131.12,131.08,0.67]
[1763947319076,0.69,131.12,131.1,2.3901277]
[1763947319685,0.69,131.12,131.04,9.5605108]
[1763947319686,103.5,131.14,131.11,3.0601277]